[Event "Late-Titled-Tuesday-Blitz-January-16-2024"]
[Site "Chess.com"]
[Date "2024.01.16"]
[Round "2"]
[White "xakevicius91"]
[Black "iturrizaga"]
[Result "0-1"]
[WhiteElo "2524"]
[BlackElo "3016"]
[TimeControl "180+1"]
[EndTime "14:17:15 PST"]
[Termination "iturrizaga won by resignation"]

1. e4 {[%clk 0:03:00.9]} 1... c5 {[%clk 0:02:59.8]} 2. Nf3 {[%clk 0:03:01]} 2...
e6 {[%clk 0:03:00.3]} 3. b3 {[%clk 0:03:01]} 3... b6 {[%clk 0:02:58.6]} 4. d4
{[%clk 0:03:01.2]} 4... cxd4 {[%clk 0:02:58.7]} 5. Nxd4 {[%clk 0:03:01]} 5...
Bb7 {[%clk 0:02:59.3]} 6. Bd3 {[%clk 0:03:01.3]} 6... Nf6 {[%clk 0:02:58.9]} 7.
Qe2 {[%clk 0:03:01.1]} 7... Bc5 {[%clk 0:02:57.4]} 8. Bb2 {[%clk 0:02:58.5]}
8... O-O {[%clk 0:02:57.4]} 9. Nd2 {[%clk 0:02:55.3]} 9... Nc6 {[%clk
0:02:55.9]} 10. Nxc6 {[%clk 0:02:54.7]} 10... Bxc6 {[%clk 0:02:56.8]} 11. O-O-O
{[%clk 0:02:53.4]} 11... a5 {[%clk 0:02:54.6]} 12. a4 {[%clk 0:02:27.9]} 12...
Qe7 {[%clk 0:02:54.3]} 13. g4 {[%clk 0:02:26.5]} 13... Rfc8 {[%clk 0:02:52.1]}
14. g5 {[%clk 0:02:26.5]} 14... Ne8 {[%clk 0:02:52.4]} 15. Rhg1 {[%clk
0:02:22.3]} 15... Ba3 {[%clk 0:02:52.5]} 16. Nc4 {[%clk 0:02:15.3]} 16... Bxb2+
{[%clk 0:02:52.3]} 17. Kxb2 {[%clk 0:02:15.8]} 17... b5 {[%clk 0:02:52.9]} 18.
axb5 {[%clk 0:02:14.1]} 18... Bxb5 {[%clk 0:02:53.8]} 19. Nb6 {[%clk 0:02:12.6]}
19... Qc5 {[%clk 0:02:16.1]} 20. Nxc8 {[%clk 0:01:59.4]} 20... Bxd3 {[%clk
0:01:54]} 21. Rxd3 {[%clk 0:01:38.8]} 21... Rxc8 {[%clk 0:01:52.4]} 22. Qd2
{[%clk 0:01:33.6]} 22... a4 {[%clk 0:01:43.5]} 23. Ra1 {[%clk 0:01:32.3]} 23...
axb3 {[%clk 0:01:32.1]} 24. cxb3 {[%clk 0:01:33.2]} 24... Qe5+ {[%clk
0:01:24.7]} 25. Rc3 {[%clk 0:01:16.6]} 25... Rb8 {[%clk 0:01:22.9]} 26. f4
{[%clk 0:01:10.8]} 26... Qxe4 {[%clk 0:01:22.6]} 27. Qe3 {[%clk 0:01:03.3]}
27... Qg2+ {[%clk 0:01:15.3]} 28. Rc2 {[%clk 0:01:01.3]} 28... Qd5 {[%clk
0:01:15.9]} 29. Rac1 {[%clk 0:00:45.3]} 29... Nd6 {[%clk 0:01:09.9]} 30. Rc5
{[%clk 0:00:28.9]} 30... Qb7 {[%clk 0:00:49.7]} 31. Rc7 {[%clk 0:00:28.8]} 31...
Qa8 {[%clk 0:00:40.5]} 32. Rxd7 {[%clk 0:00:22.2]} 32... Qg2+ {[%clk 0:00:40.6]}
33. Rc2 {[%clk 0:00:20.5]} 33... Nc4+ {[%clk 0:00:41.2]} 34. Kb1 {[%clk
0:00:08.3]} 34... Qxc2+ {[%clk 0:00:33.7]} 35. Kxc2 {[%clk 0:00:09.2]} 35...
Nxe3+ {[%clk 0:00:34.3]} 0-1

[Event "Late-Titled-Tuesday-Blitz-January-16-2024"]
[Site "Chess.com"]
[Date "2024.01.16"]
[Round "2"]
[White "ozates"]
[Black "Heinza9"]
[Result "1-0"]
[WhiteElo "2570"]
[BlackElo "2333"]
[TimeControl "180+1"]
[EndTime "14:17:19 PST"]
[Termination "ozates won on time"]

1. e4 {[%clk 0:03:00.4]} 1... e5 {[%clk 0:02:59.6]} 2. Nc3 {[%clk 0:02:56.4]}
2... Nf6 {[%clk 0:02:59]} 3. d4 {[%clk 0:02:55.9]} 3... exd4 {[%clk 0:02:57.6]}
4. Qxd4 {[%clk 0:02:56.6]} 4... Nc6 {[%clk 0:02:56.5]} 5. Qd3 {[%clk 0:02:56.4]}
5... Bb4 {[%clk 0:02:56.3]} 6. Bd2 {[%clk 0:02:50.8]} 6... d6 {[%clk 0:02:54.3]}
7. O-O-O {[%clk 0:02:49.9]} 7... O-O {[%clk 0:02:53.6]} 8. h4 {[%clk 0:02:47.2]}
8... Be6 {[%clk 0:02:52.5]} 9. h5 {[%clk 0:02:44.3]} 9... Ne5 {[%clk 0:02:46.8]}
10. Qg3 {[%clk 0:02:43]} 10... Bxc3 {[%clk 0:02:43]} 11. Qxc3 {[%clk 0:02:43.5]}
11... Nxe4 {[%clk 0:02:40.9]} 12. Qd4 {[%clk 0:02:43.5]} 12... Nxd2 {[%clk
0:02:21.8]} 13. Qxd2 {[%clk 0:02:41.3]} 13... Qf6 {[%clk 0:02:17.3]} 14. a3
{[%clk 0:02:37.6]} 14... h6 {[%clk 0:02:10]} 15. f3 {[%clk 0:02:26.4]} 15... c5
{[%clk 0:02:08.1]} 16. Nh3 {[%clk 0:02:24.9]} 16... Rad8 {[%clk 0:02:05.5]} 17.
Nf4 {[%clk 0:02:24.8]} 17... d5 {[%clk 0:01:56.7]} 18. Re1 {[%clk 0:02:17.9]}
18... d4 {[%clk 0:01:51.6]} 19. Nxe6 {[%clk 0:02:15.8]} 19... fxe6 {[%clk
0:01:49.9]} 20. Re4 {[%clk 0:01:59.5]} 20... c4 {[%clk 0:01:33.6]} 21. f4 {[%clk
0:01:48.3]} 21... c3 {[%clk 0:01:29.2]} 22. bxc3 {[%clk 0:01:42.9]} 22... dxc3
{[%clk 0:01:29.1]} 23. Qxc3 {[%clk 0:01:43.2]} 23... Ng4 {[%clk 0:01:25.6]} 24.
Qxf6 {[%clk 0:01:38.3]} 24... Rxf6 {[%clk 0:01:25.5]} 25. Bc4 {[%clk 0:01:35.9]}
25... Nf2 {[%clk 0:01:22.5]} 26. Rxe6 {[%clk 0:01:35.8]} 26... Nxh1 {[%clk
0:01:18]} 27. Re8+ {[%clk 0:01:23]} 27... Kh7 {[%clk 0:01:14.8]} 28. Rxd8 {[%clk
0:01:22.1]} 28... g5 {[%clk 0:01:04.6]} 29. Rd7+ {[%clk 0:01:10.4]} 29... Kh8
{[%clk 0:01:03.4]} 30. fxg5 {[%clk 0:01:08.1]} 30... hxg5 {[%clk 0:01:01.6]} 31.
Rxb7 {[%clk 0:01:08.4]} 31... Rf2 {[%clk 0:00:45.7]} 32. g4 {[%clk 0:01:02]}
32... Rf4 {[%clk 0:00:43.3]} 33. Be6 {[%clk 0:01:02]} 33... Nf2 {[%clk
0:00:42.2]} 34. Rb4 {[%clk 0:00:50.3]} 34... Rf6 {[%clk 0:00:35.8]} 35. Bf5
{[%clk 0:00:49.5]} 35... Ra6 {[%clk 0:00:33.5]} 36. Kb2 {[%clk 0:00:45.7]} 36...
Kg7 {[%clk 0:00:32.9]} 37. Rb7+ {[%clk 0:00:45]} 37... Kf6 {[%clk 0:00:33]} 38.
h6 {[%clk 0:00:45.5]} 1-0

[Event "Late-Titled-Tuesday-Blitz-January-16-2024"]
[Site "Chess.com"]
[Date "2024.01.16"]
[Round "2"]
[White "Levanzovsky"]
[Black "Byniolus"]
[Result "0-1"]
[WhiteElo "2479"]
[BlackElo "2750"]
[TimeControl "180+1"]
[EndTime "14:17:22 PST"]
[Termination "Byniolus won on time"]

1. c4 {[%clk 0:03:00.9]} 1... c6 {[%clk 0:02:58.7]} 2. Nf3 {[%clk 0:02:58]} 2...
d5 {[%clk 0:02:59]} 3. e3 {[%clk 0:02:58.7]} 3... Nf6 {[%clk 0:02:59.2]} 4. b3
{[%clk 0:02:59]} 4... Bf5 {[%clk 0:02:59.3]} 5. Bb2 {[%clk 0:02:58.8]} 5... e6
{[%clk 0:02:59.9]} 6. Nc3 {[%clk 0:02:57]} 6... Nbd7 {[%clk 0:02:56.1]} 7. Be2
{[%clk 0:02:56.6]} 7... Bd6 {[%clk 0:02:52.6]} 8. O-O {[%clk 0:02:56.5]} 8...
O-O {[%clk 0:02:52.2]} 9. d4 {[%clk 0:02:52.6]} 9... Ne4 {[%clk 0:02:50.1]} 10.
Nxe4 {[%clk 0:02:47]} 10... Bxe4 {[%clk 0:02:51]} 11. Nd2 {[%clk 0:02:44.9]}
11... Bg6 {[%clk 0:02:51]} 12. Rc1 {[%clk 0:02:44.2]} 12... Qe7 {[%clk
0:02:50.2]} 13. f4 {[%clk 0:02:32.1]} 13... Nf6 {[%clk 0:02:46.2]} 14. Bf3
{[%clk 0:02:05.6]} 14... a5 {[%clk 0:02:34.7]} 15. Qe2 {[%clk 0:01:58.6]} 15...
Bb4 {[%clk 0:02:21.9]} 16. Bc3 {[%clk 0:01:53.3]} 16... Ba3 {[%clk 0:02:14.5]}
17. Rcd1 {[%clk 0:01:49.6]} 17... a4 {[%clk 0:02:12.6]} 18. e4 {[%clk 0:01:48]}
18... axb3 {[%clk 0:02:06.9]} 19. e5 {[%clk 0:01:37.6]} 19... Nd7 {[%clk
0:01:43.9]} 20. axb3 {[%clk 0:01:37.3]} 20... Bb4 {[%clk 0:01:37.7]} 21. Qe3
{[%clk 0:01:30.5]} 21... Ra2 {[%clk 0:01:35]} 22. Bxb4 {[%clk 0:01:12.9]} 22...
Qxb4 {[%clk 0:01:34.6]} 23. cxd5 {[%clk 0:01:05.3]} 23... cxd5 {[%clk
0:01:33.3]} 24. f5 {[%clk 0:00:50.2]} 24... Bxf5 {[%clk 0:01:30.5]} 25. Bxd5
{[%clk 0:00:50]} 25... Bc2 {[%clk 0:01:21.6]} 26. Rde1 {[%clk 0:00:29.9]} 26...
exd5 {[%clk 0:01:09.3]} 27. e6 {[%clk 0:00:30.1]} 27... Nf6 {[%clk 0:01:09.7]}
28. exf7+ {[%clk 0:00:18.4]} 28... Rxf7 {[%clk 0:01:08.9]} 29. Nf3 {[%clk
0:00:12.1]} 29... Be4 {[%clk 0:00:57.9]} 30. Rc1 {[%clk 0:00:08.1]} 30... h6
{[%clk 0:00:52.2]} 31. Qf4 {[%clk 0:00:06.5]} 31... Qf8 {[%clk 0:00:47.8]} 32.
Nh4 {[%clk 0:00:04.3]} 32... Nh7 {[%clk 0:00:36.9]} 33. Qxf7+ {[%clk 0:00:01.2]}
33... Qxf7 {[%clk 0:00:37.8]} 34. Rc8+ {[%clk 0:00:01.2]} 34... Nf8 {[%clk
0:00:38.4]} 0-1

[Event "Late-Titled-Tuesday-Blitz-January-16-2024"]
[Site "Chess.com"]
[Date "2024.01.16"]
[Round "2"]
[White "Beca95"]
[Black "crazy_but_lazy"]
[Result "1-0"]
[WhiteElo "2968"]
[BlackElo "2584"]
[TimeControl "180+1"]
[EndTime "14:17:27 PST"]
[Termination "Beca95 won by resignation"]

1. d4 {[%clk 0:03:00.9]} 1... f5 {[%clk 0:02:57.1]} 2. Bg5 {[%clk 0:02:59.4]}
2... h6 {[%clk 0:02:49.7]} 3. Bh4 {[%clk 0:02:59.4]} 3... g5 {[%clk 0:02:50]} 4.
Bg3 {[%clk 0:02:58.5]} 4... Nf6 {[%clk 0:02:47.2]} 5. e3 {[%clk 0:02:58.1]} 5...
d6 {[%clk 0:02:46]} 6. Nc3 {[%clk 0:02:58.2]} 6... e6 {[%clk 0:02:40.8]} 7. h4
{[%clk 0:02:58.2]} 7... Rg8 {[%clk 0:02:40]} 8. hxg5 {[%clk 0:02:58.3]} 8...
hxg5 {[%clk 0:02:40.9]} 9. f3 {[%clk 0:02:58.6]} 9... Nc6 {[%clk 0:02:37.7]} 10.
Qd2 {[%clk 0:02:57.3]} 10... Qe7 {[%clk 0:02:37.5]} 11. e4 {[%clk 0:02:56.7]}
11... f4 {[%clk 0:02:33.6]} 12. Bf2 {[%clk 0:02:53.6]} 12... e5 {[%clk
0:02:33.8]} 13. Bb5 {[%clk 0:02:46.9]} 13... Bd7 {[%clk 0:02:29.8]} 14. d5
{[%clk 0:02:47.1]} 14... Nd8 {[%clk 0:02:23.4]} 15. Nge2 {[%clk 0:02:32.2]}
15... Nf7 {[%clk 0:02:15.6]} 16. O-O-O {[%clk 0:02:31.3]} 16... a6 {[%clk
0:02:06.8]} 17. Bxd7+ {[%clk 0:02:30.7]} 17... Qxd7 {[%clk 0:02:07.6]} 18. Kb1
{[%clk 0:02:28.9]} 18... Be7 {[%clk 0:02:04.5]} 19. Nc1 {[%clk 0:02:29.1]} 19...
g4 {[%clk 0:02:03.3]} 20. Bh4 {[%clk 0:02:24.8]} 20... Ng5 {[%clk 0:01:21.1]}
21. Qd3 {[%clk 0:02:24]} 21... Kf7 {[%clk 0:01:03]} 22. Nb3 {[%clk 0:02:16.3]}
22... Rg7 {[%clk 0:00:58.4]} 23. Na5 {[%clk 0:02:14.9]} 23... Rb8 {[%clk
0:00:54.4]} 24. Bxg5 {[%clk 0:02:06.3]} 24... Rxg5 {[%clk 0:00:55.3]} 25. Qc4
{[%clk 0:01:58.7]} 25... Rg7 {[%clk 0:00:45.9]} 26. Qb3 {[%clk 0:01:57.6]} 26...
b6 {[%clk 0:00:34.5]} 27. Nc6 {[%clk 0:01:56]} 27... Rbg8 {[%clk 0:00:34.7]} 28.
a4 {[%clk 0:01:37.8]} 28... gxf3 {[%clk 0:00:26.3]} 29. gxf3 {[%clk 0:01:37.3]}
29... Rg2 {[%clk 0:00:26.8]} 30. Qc4 {[%clk 0:01:26.5]} 30... a5 {[%clk
0:00:19.9]} 31. Nb5 {[%clk 0:01:25.9]} 31... Bf8 {[%clk 0:00:20]} 32. Nxc7
{[%clk 0:01:22]} 32... R8g3 {[%clk 0:00:17.4]} 33. Rd3 {[%clk 0:01:02.8]} 33...
Rf2 {[%clk 0:00:17.1]} 34. Ne6 {[%clk 0:00:58.5]} 34... Rgg2 {[%clk 0:00:15.5]}
35. Rc3 {[%clk 0:00:56.9]} 35... Bg7 {[%clk 0:00:13.9]} 36. Qb5 {[%clk
0:00:49.6]} 36... Kg6 {[%clk 0:00:12.7]} 37. Qxb6 {[%clk 0:00:45.8]} 37... Qf7
{[%clk 0:00:12.4]} 38. Qxa5 {[%clk 0:00:39.2]} 38... Nd7 {[%clk 0:00:12.3]} 39.
Qc7 {[%clk 0:00:35.4]} 1-0

[Event "Late-Titled-Tuesday-Blitz-January-16-2024"]
[Site "Chess.com"]
[Date "2024.01.16"]
[Round "2"]
[White "Mr_November18"]
[Black "BogdanDeac"]
[Result "0-1"]
[WhiteElo "2060"]
[BlackElo "3029"]
[TimeControl "180+1"]
[EndTime "14:17:33 PST"]
[Termination "BogdanDeac won by resignation"]

1. e4 {[%clk 0:03:00.9]} 1... c6 {[%clk 0:02:55.6]} 2. d4 {[%clk 0:03:00]} 2...
d5 {[%clk 0:02:56.5]} 3. f3 {[%clk 0:02:59.9]} 3... Qb6 {[%clk 0:02:51.4]} 4.
Nc3 {[%clk 0:02:59]} 4... dxe4 {[%clk 0:02:50.4]} 5. Nxe4 {[%clk 0:02:58.3]}
5... Bf5 {[%clk 0:02:46.8]} 6. Ne2 {[%clk 0:02:54.1]} 6... e6 {[%clk 0:02:43.8]}
7. N2g3 {[%clk 0:02:52.8]} 7... Bg6 {[%clk 0:02:43.2]} 8. c3 {[%clk 0:02:49.6]}
8... h5 {[%clk 0:02:39.8]} 9. Bd3 {[%clk 0:02:41.3]} 9... h4 {[%clk 0:02:38.2]}
10. Ne2 {[%clk 0:02:40.9]} 10... Nd7 {[%clk 0:02:38.5]} 11. Nf4 {[%clk 0:02:40]}
11... Bf5 {[%clk 0:02:38.4]} 12. Nf2 {[%clk 0:02:28.2]} 12... Nh6 {[%clk
0:02:28.5]} 13. O-O {[%clk 0:02:23.4]} 13... Qc7 {[%clk 0:02:23.6]} 14. Re1
{[%clk 0:02:20.2]} 14... Bd6 {[%clk 0:02:13.9]} 15. Bxf5 {[%clk 0:02:06.2]}
15... Nxf5 {[%clk 0:02:08.8]} 16. Nxe6 {[%clk 0:02:01.1]} 16... fxe6 {[%clk
0:02:08.1]} 17. Rxe6+ {[%clk 0:02:00.8]} 17... Ne7 {[%clk 0:01:55.2]} 18. Bg5
{[%clk 0:01:46.2]} 18... Nf8 {[%clk 0:01:48.2]} 19. Re2 {[%clk 0:01:33.9]} 19...
Ng6 {[%clk 0:01:47]} 20. Qc2 {[%clk 0:01:22]} 20... O-O-O {[%clk 0:01:23.3]} 21.
Rae1 {[%clk 0:01:18.8]} 21... Rdf8 {[%clk 0:01:15.2]} 22. Ng4 {[%clk 0:01:12]}
22... h3 {[%clk 0:01:09.1]} 23. g3 {[%clk 0:01:05.2]} 23... Rxf3 {[%clk
0:01:08.6]} 24. Bxe7 {[%clk 0:00:53.6]} 24... Nxe7 {[%clk 0:00:59.4]} 25. Ne5
{[%clk 0:00:48.5]} 25... Rff8 {[%clk 0:00:25.7]} 26. Qe4 {[%clk 0:00:46.1]}
26... Bxe5 {[%clk 0:00:21.6]} 27. dxe5 {[%clk 0:00:43.6]} 27... Qd7 {[%clk
0:00:15.9]} 28. c4 {[%clk 0:00:38.8]} 28... Rd8 {[%clk 0:00:14.9]} 29. b4 {[%clk
0:00:33.3]} 29... Qd4+ {[%clk 0:00:14.5]} 30. Kh1 {[%clk 0:00:32.2]} 30... Qxe4+
{[%clk 0:00:14.3]} 31. Rxe4 {[%clk 0:00:31.7]} 31... Rhf8 {[%clk 0:00:14.4]} 32.
e6 {[%clk 0:00:30.4]} 32... Rf2 {[%clk 0:00:14.3]} 33. Kg1 {[%clk 0:00:29.3]}
33... Rdd2 {[%clk 0:00:14.7]} 34. R4e2 {[%clk 0:00:20.4]} 34... Rdxe2 {[%clk
0:00:14.3]} 0-1

[Event "Late-Titled-Tuesday-Blitz-January-16-2024"]
[Site "Chess.com"]
[Date "2024.01.16"]
[Round "2"]
[White "Gryffindorac8"]
[Black "ChessSwole"]
[Result "1-0"]
[WhiteElo "2383"]
[BlackElo "2661"]
[TimeControl "180+1"]
[EndTime "14:17:34 PST"]
[Termination "Gryffindorac8 won by resignation"]

1. d4 {[%clk 0:03:00.9]} 1... Nf6 {[%clk 0:02:58.7]} 2. c4 {[%clk 0:03:01]} 2...
e6 {[%clk 0:02:56.4]} 3. Nf3 {[%clk 0:03:00.9]} 3... b6 {[%clk 0:02:56.7]} 4. g3
{[%clk 0:02:59.5]} 4... Ba6 {[%clk 0:02:56]} 5. Qc2 {[%clk 0:02:45.2]} 5... Bb7
{[%clk 0:02:53.2]} 6. Bg2 {[%clk 0:02:44.7]} 6... c5 {[%clk 0:02:53.6]} 7. d5
{[%clk 0:02:44.2]} 7... exd5 {[%clk 0:02:52.6]} 8. Nh4 {[%clk 0:02:42.5]} 8...
Be7 {[%clk 0:02:46.5]} 9. Nc3 {[%clk 0:02:34.9]} 9... O-O {[%clk 0:02:44.7]} 10.
O-O {[%clk 0:02:28.3]} 10... Nc6 {[%clk 0:02:42.5]} 11. cxd5 {[%clk 0:02:16.4]}
11... Nb4 {[%clk 0:02:42.2]} 12. Qd1 {[%clk 0:02:08.8]} 12... d6 {[%clk
0:02:35.8]} 13. a3 {[%clk 0:02:04.8]} 13... Na6 {[%clk 0:02:35.9]} 14. Nf5
{[%clk 0:02:03.6]} 14... Nc7 {[%clk 0:02:34.2]} 15. e4 {[%clk 0:01:59.8]} 15...
Re8 {[%clk 0:02:30.2]} 16. Nxe7+ {[%clk 0:01:48.5]} 16... Qxe7 {[%clk
0:02:28.3]} 17. a4 {[%clk 0:01:48.5]} 17... h6 {[%clk 0:02:27.3]} 18. Bf4 {[%clk
0:01:45.4]} 18... a6 {[%clk 0:02:25.2]} 19. Qb3 {[%clk 0:01:35.9]} 19... Nd7
{[%clk 0:02:18.6]} 20. Rfe1 {[%clk 0:01:30.7]} 20... Rab8 {[%clk 0:02:12.2]} 21.
Rad1 {[%clk 0:01:25.9]} 21... b5 {[%clk 0:02:11.9]} 22. e5 {[%clk 0:01:12.4]}
22... c4 {[%clk 0:01:46.8]} 23. Qc2 {[%clk 0:01:07.1]} 23... Nc5 {[%clk
0:01:17]} 24. Re3 {[%clk 0:00:47.4]} 24... Qd7 {[%clk 0:01:08.7]} 25. exd6
{[%clk 0:00:42.5]} 25... Na8 {[%clk 0:01:06.1]} 26. axb5 {[%clk 0:00:35]} 26...
axb5 {[%clk 0:01:03.1]} 27. Re7 {[%clk 0:00:33.1]} 27... Qg4 {[%clk 0:00:37.3]}
28. Rde1 {[%clk 0:00:28.3]} 28... Red8 {[%clk 0:00:32]} 29. h3 {[%clk
0:00:24.5]} 29... Qc8 {[%clk 0:00:22.6]} 30. Rc7 {[%clk 0:00:23]} 30... Nd3
{[%clk 0:00:20.5]} 31. Rxc8 {[%clk 0:00:22]} 31... Rbxc8 {[%clk 0:00:21.4]} 32.
Re7 {[%clk 0:00:21.4]} 32... Ba6 {[%clk 0:00:16.7]} 33. d7 {[%clk 0:00:19.5]}
33... Rb8 {[%clk 0:00:16.2]} 34. Bxb8 {[%clk 0:00:19.2]} 34... Rxb8 {[%clk
0:00:17.1]} 35. Re8+ {[%clk 0:00:19.5]} 35... Kh7 {[%clk 0:00:15.9]} 36. Rxb8
{[%clk 0:00:19.5]} 1-0

[Event "Late-Titled-Tuesday-Blitz-January-16-2024"]
[Site "Chess.com"]
[Date "2024.01.16"]
[Round "2"]
[White "protectiago"]
[Black "Redzishchess"]
[Result "0-1"]
[WhiteElo "2032"]
[BlackElo "2451"]
[TimeControl "180+1"]
[EndTime "14:17:40 PST"]
[Termination "Redzishchess won by resignation"]

1. d4 {[%clk 0:03:00.9]} 1... Nf6 {[%clk 0:02:59.2]} 2. c4 {[%clk 0:03:00.6]}
2... g6 {[%clk 0:02:59.8]} 3. Nc3 {[%clk 0:02:57.8]} 3... d5 {[%clk 0:03:00.4]}
4. cxd5 {[%clk 0:02:54]} 4... Nxd5 {[%clk 0:03:01.3]} 5. e4 {[%clk 0:02:54.3]}
5... Nxc3 {[%clk 0:03:01.8]} 6. bxc3 {[%clk 0:02:55]} 6... Bg7 {[%clk
0:03:02.7]} 7. Be3 {[%clk 0:02:54.7]} 7... c5 {[%clk 0:03:03]} 8. Rc1 {[%clk
0:02:49.5]} 8... O-O {[%clk 0:02:51.3]} 9. Qd2 {[%clk 0:02:40.1]} 9... cxd4
{[%clk 0:02:45]} 10. cxd4 {[%clk 0:02:40.1]} 10... b6 {[%clk 0:02:45.3]} 11. Bc4
{[%clk 0:02:28.9]} 11... Bb7 {[%clk 0:02:38.1]} 12. f3 {[%clk 0:02:22.7]} 12...
e6 {[%clk 0:02:22]} 13. Ne2 {[%clk 0:02:21.3]} 13... Nc6 {[%clk 0:02:20.6]} 14.
O-O {[%clk 0:02:08.5]} 14... Rc8 {[%clk 0:02:20.5]} 15. Rfd1 {[%clk 0:02:06.4]}
15... Na5 {[%clk 0:02:13.2]} 16. Bd3 {[%clk 0:01:55.6]} 16... Qd7 {[%clk
0:02:10.1]} 17. Rxc8 {[%clk 0:01:48.9]} 17... Rxc8 {[%clk 0:02:11]} 18. Rc1
{[%clk 0:01:47.6]} 18... h5 {[%clk 0:01:24.3]} 19. g3 {[%clk 0:01:29.1]} 19...
Rxc1+ {[%clk 0:01:17.3]} 20. Qxc1 {[%clk 0:01:27.8]} 20... Qa4 {[%clk
0:01:17.6]} 21. Qc2 {[%clk 0:00:30]} 21... Qxc2 {[%clk 0:01:13.3]} 22. Bxc2
{[%clk 0:00:30.1]} 22... Nc4 {[%clk 0:01:14.2]} 23. Bf2 {[%clk 0:00:28.8]} 23...
b5 {[%clk 0:01:14.3]} 24. Bb3 {[%clk 0:00:27.4]} 24... Nd2 {[%clk 0:01:11.9]}
25. Kg2 {[%clk 0:00:26.1]} 25... Nxb3 {[%clk 0:01:07.5]} 26. axb3 {[%clk
0:00:25.9]} 26... Kf8 {[%clk 0:00:55.8]} 27. Nc3 {[%clk 0:00:25.6]} 27... a6
{[%clk 0:00:55.6]} 28. Nd1 {[%clk 0:00:21.9]} 28... Ke7 {[%clk 0:00:52.2]} 29.
Ne3 {[%clk 0:00:20]} 29... Bxd4 {[%clk 0:00:48.2]} 30. Nf5+ {[%clk 0:00:19.1]}
30... exf5 {[%clk 0:00:48.2]} 31. Bxd4 {[%clk 0:00:19.7]} 31... fxe4 {[%clk
0:00:48.8]} 32. f4 {[%clk 0:00:19.4]} 32... Ke6 {[%clk 0:00:45.6]} 33. b4 {[%clk
0:00:19.6]} 33... Kd5 {[%clk 0:00:45.8]} 34. Bc5 {[%clk 0:00:19.2]} 34... a5
{[%clk 0:00:44.9]} 35. Be7 {[%clk 0:00:18]} 35... a4 {[%clk 0:00:44.8]} 36. Bf6
{[%clk 0:00:18.2]} 36... Kc4 {[%clk 0:00:43.9]} 37. Be7 {[%clk 0:00:17.3]} 37...
a3 {[%clk 0:00:43.2]} 38. Kf2 {[%clk 0:00:17.1]} 38... Kd3 {[%clk 0:00:38.2]}
39. Ke1 {[%clk 0:00:16.5]} 39... e3 {[%clk 0:00:38.5]} 40. h3 {[%clk 0:00:14.8]}
40... Bf3 {[%clk 0:00:38.5]} 41. Bf6 {[%clk 0:00:12.8]} 41... Kc4 {[%clk
0:00:38.5]} 42. Ba1 {[%clk 0:00:09.9]} 42... Kxb4 {[%clk 0:00:38.2]} 43. Bd4
{[%clk 0:00:10.2]} 43... a2 {[%clk 0:00:36.6]} 0-1

[Event "Late-Titled-Tuesday-Blitz-January-16-2024"]
[Site "Chess.com"]
[Date "2024.01.16"]
[Round "2"]
[White "Eloist"]
[Black "dianamirza"]
[Result "1-0"]
[WhiteElo "2442"]
[BlackElo "2001"]
[TimeControl "180+1"]
[EndTime "14:17:41 PST"]
[Termination "Eloist won by resignation"]

1. e4 {[%clk 0:02:56.2]} 1... c5 {[%clk 0:02:54.4]} 2. Nf3 {[%clk 0:02:54.8]}
2... e6 {[%clk 0:02:49.4]} 3. d4 {[%clk 0:02:54.1]} 3... cxd4 {[%clk 0:02:48.5]}
4. Nxd4 {[%clk 0:02:54.3]} 4... Nc6 {[%clk 0:02:48]} 5. Nc3 {[%clk 0:02:54.2]}
5... a6 {[%clk 0:02:41.9]} 6. Be3 {[%clk 0:02:53.4]} 6... Nf6 {[%clk 0:02:40.6]}
7. Nxc6 {[%clk 0:02:49]} 7... bxc6 {[%clk 0:02:39]} 8. Bd3 {[%clk 0:02:29]} 8...
Qc7 {[%clk 0:02:32]} 9. f4 {[%clk 0:02:27.5]} 9... Be7 {[%clk 0:02:26.3]} 10.
O-O {[%clk 0:02:25.1]} 10... O-O {[%clk 0:02:25.9]} 11. Qf3 {[%clk 0:02:15.9]}
11... Rb8 {[%clk 0:02:11.9]} 12. b3 {[%clk 0:01:58.4]} 12... d5 {[%clk 0:02:08]}
13. e5 {[%clk 0:01:57.4]} 13... Nd7 {[%clk 0:02:00.8]} 14. Na4 {[%clk
0:01:56.4]} 14... c5 {[%clk 0:01:53.2]} 15. c4 {[%clk 0:01:55.8]} 15... d4
{[%clk 0:01:49.4]} 16. Bd2 {[%clk 0:01:54.4]} 16... Bb7 {[%clk 0:01:49.3]} 17.
Be4 {[%clk 0:01:49.5]} 17... Nb6 {[%clk 0:01:47.1]} 18. Ba5 {[%clk 0:01:44.5]}
18... Bxe4 {[%clk 0:01:41]} 19. Qxe4 {[%clk 0:01:43.5]} 19... Bd8 {[%clk
0:01:14]} 20. Nxb6 {[%clk 0:01:41.3]} 20... Rxb6 {[%clk 0:01:14.9]} 21. f5
{[%clk 0:01:36.6]} 21... exf5 {[%clk 0:01:11.2]} 22. Rxf5 {[%clk 0:01:34]} 22...
Qd7 {[%clk 0:01:06.8]} 23. Bxb6 {[%clk 0:01:33]} 23... Bxb6 {[%clk 0:01:07.7]}
24. Re1 {[%clk 0:01:28.7]} 24... g6 {[%clk 0:01:03.8]} 25. Rf6 {[%clk
0:01:25.8]} 25... Ba5 {[%clk 0:01:03.1]} 26. e6 {[%clk 0:01:20.4]} 26... fxe6
{[%clk 0:00:58.9]} 27. Qxe6+ {[%clk 0:01:20.1]} 27... Qxe6 {[%clk 0:00:57.2]}
28. Rxf8+ {[%clk 0:01:19.7]} 28... Kxf8 {[%clk 0:00:56.4]} 29. Rxe6 {[%clk
0:01:20.2]} 29... d3 {[%clk 0:00:53.3]} 30. Rd6 {[%clk 0:01:17.2]} 30... d2
{[%clk 0:00:53.4]} 31. Kf2 {[%clk 0:01:16.7]} 31... Ke7 {[%clk 0:00:52.7]} 32.
Rd5 {[%clk 0:01:16.3]} 32... Bb4 {[%clk 0:00:49.7]} 33. Ke2 {[%clk 0:01:15.9]}
33... Ke6 {[%clk 0:00:48.7]} 34. a3 {[%clk 0:01:14.9]} 34... Bxa3 {[%clk
0:00:39]} 35. Kxd2 {[%clk 0:01:14.5]} 35... a5 {[%clk 0:00:36.1]} 36. Kd3 {[%clk
0:01:13.6]} 36... Bb4 {[%clk 0:00:36.1]} 37. Ke4 {[%clk 0:01:13.6]} 37... Kf6
{[%clk 0:00:35.5]} 38. Rd7 {[%clk 0:01:11.7]} 38... h5 {[%clk 0:00:35.2]} 39. h4
{[%clk 0:01:06.5]} 39... Be1 {[%clk 0:00:33.6]} 40. Rd6+ {[%clk 0:01:05.9]}
40... Kf7 {[%clk 0:00:31.5]} 41. Rc6 {[%clk 0:01:04]} 41... Bxh4 {[%clk
0:00:22]} 42. Rxc5 {[%clk 0:01:02.8]} 42... Be1 {[%clk 0:00:22.5]} 43. Rc7+
{[%clk 0:00:58.6]} 43... Kf6 {[%clk 0:00:22.7]} 44. c5 {[%clk 0:00:58.5]} 44...
g5 {[%clk 0:00:22.1]} 45. Rc6+ {[%clk 0:00:57.9]} 45... Ke7 {[%clk 0:00:20.6]}
46. Rh6 {[%clk 0:00:57.7]} 46... h4 {[%clk 0:00:21]} 47. Kd5 {[%clk 0:00:54.9]}
47... g4 {[%clk 0:00:19.8]} 48. c6 {[%clk 0:00:54]} 48... h3 {[%clk 0:00:16.9]}
49. gxh3 {[%clk 0:00:53.1]} 49... g3 {[%clk 0:00:16.9]} 50. Rg6 {[%clk
0:00:46.7]} 50... Kf7 {[%clk 0:00:16.1]} 51. Rg4 {[%clk 0:00:46.1]} 51... Kf6
{[%clk 0:00:16.5]} 52. c7 {[%clk 0:00:45.7]} 52... Kf5 {[%clk 0:00:17.4]} 53.
c8=Q+ {[%clk 0:00:44.9]} 1-0